Service area,Service sub division,TVBC Service,Expense type,Detailed expense type,TVBC account code,Date Paid,Transaction Reference,Nett Value,Supplier Name
Cultural & Related,Open Spaces,Environmental,Supplies & Services,"Equipment, Furniture & Materials",Purchase Equip + Materials,24/04/2014,109157,-3708,Rigby Taylor Ltd
Central Services to the Public,Local Tax Collection,Revenues,Supplies & Services,"Printing, Stationery & General Office Expenses",External Printing,17/04/2014,123318,-1500,Computastat Group Ltd
Central Services to the Public,Management & Support Services,IT,Supplies & Services,Communications & Computing,Software Maintenance,24/04/2014,123232,-1482,Esri (Uk) Ltd
Environmental & Regulatory,Regulatory Services,Estates and Economic Development ,Premises related Expenditure,Water Services,Water And Sewerage Charges,17/04/2014,123842,-626.9,Southern Water
Cultural & Related,Culture & Heritage,Estates and Economic Development ,Premises related Expenditure,Water Services,Water And Sewerage Charges,17/04/2014,123902,-411.92,Southern Water
Cultural & Related,Open Spaces,Environmental,Premises related Expenditure,Water Services,Water And Sewerage Charges,24/04/2014,124349,-273.57,Southern Water
Cultural & Related,Tourism,Estates and Economic Development ,Premises related Expenditure,Water Services,Water And Sewerage Charges,17/04/2014,123901,-251.98,Southern Water
Planning & Development,Community Development,Community and Leisure ,Supplies & Services,Grants & Subscriptions,Grants,09/04/2014,123373,500,Enham Trust
Planning & Development,Community Development,Community and Leisure ,Supplies & Services,Grants & Subscriptions,Grants,09/04/2014,123374,500,Andover & Adult Family Learning
Planning & Development,Community Development,Community and Leisure ,Supplies & Services,Grants & Subscriptions,Grants,09/04/2014,123376,500,Me And My Dad Club
Planning & Development,Community Development,Community and Leisure ,Supplies & Services,Grants & Subscriptions,Grants,10/04/2014,123513,500,Romsey Beggars Fair
Planning & Development,Economic Development,Estates and Economic Development ,Supplies & Services,Grants & Subscriptions,Grants,02/04/2014,122830,500,Ready To Go Art
Planning & Development,Economic Development,Estates and Economic Development ,Supplies & Services,Grants & Subscriptions,Grants,09/04/2014,123345,500,M Kimber
Cultural & Related,Open Spaces,Community and Leisure ,Supplies & Services,Grants & Subscriptions,Grants,17/04/2014,123179,500,Environmental Science Student Society
Central Services,Corporate & Democratic Core,Corporate & Democratic,Supplies & Services,Services,Legal Fees,23/04/2014,124356,500,The Information Commissioner
Planning & Development,Community Development,Community and Leisure ,Supplies & Services,Grants & Subscriptions,Grants,09/04/2014,123375,500,Hampshire Art And Craft Cic
Cultural & Related,Open Spaces,Environmental,Supplies & Services,Communications & Computing,Mobile Telephone Charges,10/04/2014,123476,191.65,Vodafone Limited
Central Services to the Public,Management & Support Services,Environmental,Supplies & Services,Communications & Computing,Mobile Telephone Charges,10/04/2014,123476,22.25,Vodafone Limited
Central Services to the Public,Management & Support Services,Environmental,Supplies & Services,Communications & Computing,Mobile Telephone Charges,10/04/2014,123476,11.52,Vodafone Limited
Environmental & Regulatory,Waste management,Environmental,Supplies & Services,Communications & Computing,Mobile Telephone Charges,10/04/2014,123476,70.38,Vodafone Limited
Environmental & Regulatory,Street Cleansing (not chargeable to Highways),Environmental,Supplies & Services,Communications & Computing,Mobile Telephone Charges,10/04/2014,123476,121.57,Vodafone Limited
Cultural & Related,Open Spaces,Environmental,Transport Related Expenditure,Direct Transport Costs,Repair Materials,17/04/2014,123458,418.2,"Edwards Ford, Andover Ford"
Environmental & Regulatory,Street Cleansing (not chargeable to Highways),Environmental,Premises related Expenditure,Rents,Rents,09/04/2014,121888,419.04,Aster Communities
Environmental & Regulatory,Street Cleansing (not chargeable to Highways),Environmental,Premises related Expenditure,Rents,Rents,09/04/2014,121889,419.04,Aster Communities
Cultural & Related,Recreation & Sport,Community and Leisure ,Third Party Payments,Private contractors,Main Contractor Costs,17/04/2014,116551,420,Faraday Fabrication And Welding Ltd
Cultural & Related,Culture & Heritage,Estates and Economic Development ,Premises related Expenditure,Water Services,Water And Sewerage Charges,17/04/2014,123830,504.14,Southern Water
Environmental & Regulatory,Waste management,Environmental,Transport Related Expenditure,Direct Transport Costs,External Garages,30/04/2014,124388,421.5,Dennis Eagle Ltd
Cultural & Related,Recreation & Sport,Community and Leisure ,Supplies & Services,"Equipment, Furniture & Materials",Purchase Equip + Materials,03/04/2014,122695,425,Land Development Services
"Highways, Roads & Transport",Highways and roads - maintenance,Plan Pol & Transport,Premises related Expenditure,Repairs Alterations & Maintenance of Buildings,General Repairs,24/04/2014,124283,425,Intratest Ltd
Central Services to the Public,Management & Support Services,Plan Pol & Transport,Supplies & Services,Miscellaneous Expenses,Advertising,10/04/2014,123356,427,Hampshire Media Limited
Central Services to the Public,Management & Support Services,Plan Pol & Transport,Supplies & Services,Miscellaneous Expenses,Advertising,10/04/2014,123357,427,Hampshire Media Limited
Central Services to the Public,Management & Support Services,Chief Executive's,Supplies & Services,"Printing, Stationery & General Office Expenses",Training Courses,03/04/2014,122758,513.26,Personal data - Data Protection Act 1998
Cultural & Related,Open Spaces,Environmental,Transport Related Expenditure,Direct Transport Costs,Repair Materials,30/04/2014,124671,128.4,M D Services
Environmental & Regulatory,Street Cleansing (not chargeable to Highways),Environmental,Transport Related Expenditure,Direct Transport Costs,Repair Materials,30/04/2014,124671,136.96,M D Services
Environmental & Regulatory,Waste management,Environmental,Transport Related Expenditure,Direct Transport Costs,Repair Materials,30/04/2014,124671,72.76,M D Services
Environmental & Regulatory,Waste management,Environmental,Transport Related Expenditure,Direct Transport Costs,Repair Materials,30/04/2014,124671,12.84,M D Services
Central Services to the Public,Management & Support Services,Environmental,Transport Related Expenditure,Direct Transport Costs,Repair Materials,30/04/2014,124671,12.84,M D Services
Environmental & Regulatory,Regulatory Services,Housing and Environmental Health ,Transport Related Expenditure,Direct Transport Costs,Repair Materials,30/04/2014,124671,8.56,M D Services
Environmental & Regulatory,Regulatory Services,Housing and Environmental Health ,Transport Related Expenditure,Direct Transport Costs,Repair Materials,30/04/2014,124671,8.56,M D Services
"Highways, Roads & Transport",Parking Services,Plan Pol & Transport,Transport Related Expenditure,Direct Transport Costs,Repair Materials,30/04/2014,124671,8.56,M D Services
Central Services to the Public,Management & Support Services,Estates and Economic Development ,Transport Related Expenditure,Direct Transport Costs,Repair Materials,30/04/2014,124671,21.4,M D Services
Environmental & Regulatory,Regulatory Services,Estates and Economic Development ,Transport Related Expenditure,Direct Transport Costs,Repair Materials,30/04/2014,124671,8.56,M D Services
Environmental & Regulatory,Community Safety,Community and Leisure ,Transport Related Expenditure,Direct Transport Costs,Repair Materials,30/04/2014,124671,8.56,M D Services
Central Services to the Public,Elections,Legal & Democratic,Supplies & Services,"Printing, Stationery & General Office Expenses",Photocopying Costs,30/04/2014,124849,434.52,Ricoh Uk Ltd
Environmental & Regulatory,Waste management,Environmental,Employees,Indirect Employee Expenses,Agency Staff - Waged Posts,17/04/2014,123719,436.24,Simple Recruitment Services Ltd
Environmental & Regulatory,Street Cleansing (not chargeable to Highways),Environmental,Transport Related Expenditure,Direct Transport Costs,Repair Materials,24/04/2014,124328,437.11,"Edwards Ford, Andover Ford"
Environmental & Regulatory,Regulatory Services,Housing and Environmental Health ,Supplies & Services,Services,Legal Fees,10/04/2014,123174,525,Cornerstone Barristers
Cultural & Related,Culture & Heritage,Estates and Economic Development ,Premises related Expenditure,Energy Costs,Gas,03/04/2014,122127,438.06,Total Gas & Power Ltd
Cultural & Related,Open Spaces,Environmental,Supplies & Services,"Equipment, Furniture & Materials",Purchase Equip + Materials,03/04/2014,122732,439.29,Jewson Ltd
Environmental & Regulatory,Waste management,Environmental,Employees,Indirect Employee Expenses,Agency Staff - Waged Posts,03/04/2014,122900,445.2,Abacus Employment Services Ltd
Environmental & Regulatory,Regulatory Services,Housing and Environmental Health ,Supplies & Services,Grants and subscriptions,Capital Grants,24/04/2014,124424,535,Moorview (South Coast) Ltd
Cultural & Related,Culture & Heritage,Community and Leisure ,Supplies & Services,Services,Tutors,03/04/2014,122454,550,Personal data - Data Protection Act 1998
Environmental & Regulatory,Waste management,Environmental,Transport Related Expenditure,Direct Transport Costs,Repair Materials,17/04/2014,122971,458.45,Terberg Matec Uk Limited
Central Services to the Public,Management & Support Services,Chief Executive's,Employees,Indirect Employee Expenses,Temporary Staff,10/04/2014,123208,463.98,Personnel Selection
Central Services to the Public,Management & Support Services,Chief Executive's,Employees,Indirect Employee Expenses,Temporary Staff,30/04/2014,124337,463.98,Personnel Selection
Cultural & Related,Culture & Heritage,Estates and Economic Development ,Premises related Expenditure,Energy Costs,Gas,03/04/2014,122122,466.8,Total Gas & Power Ltd
Cultural & Related,Open Spaces,Community and Leisure ,Supplies & Services,"Equipment, Furniture & Materials",Purchase Equip + Materials,30/04/2014,124712,467,Personal data - Data Protection Act 1998
Environmental & Regulatory,Waste management,Environmental,Supplies & Services,"Printing, Stationery & General Office Expenses",External Printing,03/04/2014,122896,476.05,Longcombe Labels Ltd
Environmental & Regulatory,Street Cleansing (not chargeable to Highways),Environmental,Supplies & Services,"Printing, Stationery & General Office Expenses",External Printing,30/04/2014,124564,477,Personal data - Data Protection Act 1998
Environmental & Regulatory,Regulatory Services,Estates and Economic Development ,Supplies & Services,"Equipment, Furniture & Materials",Purchase Equip + Materials,03/04/2014,122792,478.1,Cjs Portsmouth Ltd
Central Services to the Public,Management & Support Services,Housing and Environmental Health ,Supplies & Services,Grants & Subscriptions,Subscriptions,03/04/2014,122829,480,Chartered Inst. Of Environmental Health
External Trading Accounts,Industrial Estates,Estates and Economic Development ,Supplies & Services,Miscellaneous Expenses,Waste Collection,24/04/2014,124275,481.8,Basingstoke Skip Hire & Sthrn Waste Mgt Ltd
"Highways, Roads & Transport",Parking Services,Plan Pol & Transport,Supplies & Services,Miscellaneous Expenses,Advertising,10/04/2014,123489,482.6,Hampshire Media Limited
Environmental & Regulatory,Waste management,Environmental,Employees,Indirect Employee Expenses,Agency Staff - Waged Posts,17/04/2014,123718,483.22,Simple Recruitment Services Ltd
Cultural & Related,Culture & Heritage,Estates and Economic Development ,Premises related Expenditure,Repairs Alterations & Maintenance of Buildings,Planned Maintenance - Non Est,30/04/2014,124579,160,A C Wallbridge & Co Ltd
Central Services to the Public,Management & Support Services,Estates and Economic Development ,Premises related Expenditure,Repairs Alterations & Maintenance of Buildings,Planned Maintenance - Non Est,30/04/2014,124579,100,A C Wallbridge & Co Ltd
Cultural & Related,Recreation & Sport,Community and Leisure ,Premises related Expenditure,Repairs Alterations & Maintenance of Buildings,Planned Maintenance - Non Est,30/04/2014,124579,225,A C Wallbridge & Co Ltd
Central Services to the Public,Management & Support Services,Estates and Economic Development ,Supplies & Services,Services,Professional Fees,10/04/2014,123295,487.53,Valuation Office Agency
Central Services to the Public,Management & Support Services,Chief Executive's,Employees,Indirect Employee Expenses,Temporary Staff,10/04/2014,123206,490.62,Personnel Selection
Central Services to the Public,Management & Support Services,Chief Executive's,Employees,Indirect Employee Expenses,Temporary Staff,10/04/2014,123207,490.62,Personnel Selection
Central Services to the Public,Management & Support Services,Chief Executive's,Employees,Indirect Employee Expenses,Temporary Staff,10/04/2014,123210,490.62,Personnel Selection
Central Services to the Public,Management & Support Services,Chief Executive's,Employees,Indirect Employee Expenses,Temporary Staff,30/04/2014,124335,490.62,Personnel Selection
Central Services to the Public,Management & Support Services,Chief Executive's,Employees,Indirect Employee Expenses,Temporary Staff,30/04/2014,124336,490.62,Personnel Selection
Central Services to the Public,Management & Support Services,Finance,Employees,Indirect Employee Expenses,Agency Staff - Waged Posts,10/04/2014,123310,491.8,Cma Financial Recruitment Ltd
Central Services to the Public,Management & Support Services,Finance,Employees,Indirect Employee Expenses,Agency Staff - Waged Posts,03/04/2014,122755,491.8,Cma Financial Recruitment Ltd
Central Services to the Public,Management & Support Services,Finance,Employees,Indirect Employee Expenses,Agency Staff - Waged Posts,17/04/2014,123731,491.8,Cma Financial Recruitment Ltd
Central Services to the Public,Management & Support Services,Finance,Employees,Indirect Employee Expenses,Agency Staff - Waged Posts,24/04/2014,124252,491.8,Cma Financial Recruitment Ltd
Central Services to the Public,Management & Support Services,Housing and Environmental Health ,Supplies & Services,"Printing, Stationery & General Office Expenses",Photocopying Costs,30/04/2014,124846,492.07,Ricoh Uk Ltd
Planning & Development,Development Control,Planning & Building,Supplies & Services,"Printing, Stationery & General Office Expenses",Photocopying Costs,17/04/2014,123479,498.12,Ricoh Uk Ltd
Central Services to the Public,Management & Support Services,IT,Supplies & Services,Communications & Computing,Software Maintenance,17/04/2014,123203,498.75,Daisy Communications Ltd
Central Services to the Public,Management & Support Services,Chief Executive's,Supplies & Services,"Printing, Stationery & General Office Expenses",Training Courses,24/04/2014,123950,499,Solace Enterprises Ltd
Cultural & Related,Recreation & Sport,Community and Leisure ,Premises related Expenditure,Rents,Premises Hire,24/04/2014,124309,500,Valley Leisure Ltd
Cultural & Related,Open Spaces,Community and Leisure ,Premises related Expenditure,Grounds Maintenance Costs,Gm - Additional Works,24/04/2014,123692,500,Evergreen Rabbit Control
Central Services to the Public,Management & Support Services,Estates and Economic Development ,Supplies & Services,Services,Professional Fees,30/04/2014,124306,500,Valuation Office Agency
Environmental & Regulatory,Waste management,Environmental,Supplies & Services,Miscellaneous Expenses,Recycling Campaign,17/04/2014,123493,501,Cammegh Davies Fleming
Environmental & Regulatory,Street Cleansing (not chargeable to Highways),Environmental,Transport Related Expenditure,Direct Transport Costs,Repair Materials,30/04/2014,123001,60.94,Johnston Sweepers Ltd
Environmental & Regulatory,Street Cleansing (not chargeable to Highways),Environmental,Transport Related Expenditure,Direct Transport Costs,External Garages,30/04/2014,123001,442,Johnston Sweepers Ltd
Central Services to the Public,Management & Support Services,Estates and Economic Development ,Supplies & Services,Communications & Computing,Telephone Tracking System,17/04/2014,123687,12.5,Ctrack Uk Limited
Environmental & Regulatory,Regulatory Services,Estates and Economic Development ,Supplies & Services,Communications & Computing,Telephone Tracking System,17/04/2014,123687,5,Ctrack Uk Limited
Cultural & Related,Open Spaces,Environmental,Supplies & Services,Communications & Computing,Telephone Tracking System,17/04/2014,123687,195,Ctrack Uk Limited
Environmental & Regulatory,Street Cleansing (not chargeable to Highways),Environmental,Supplies & Services,Communications & Computing,Telephone Tracking System,17/04/2014,123687,143,Ctrack Uk Limited
Environmental & Regulatory,Waste management,Environmental,Supplies & Services,Communications & Computing,Telephone Tracking System,17/04/2014,123687,117,Ctrack Uk Limited
Environmental & Regulatory,Waste management,Environmental,Supplies & Services,Communications & Computing,Telephone Tracking System,17/04/2014,123687,13,Ctrack Uk Limited
Central Services to the Public,Management & Support Services,Environmental,Supplies & Services,Communications & Computing,Telephone Tracking System,17/04/2014,123687,19.5,Ctrack Uk Limited
Planning & Development,Development Control,Planning & Building,Supplies & Services,"Printing, Stationery & General Office Expenses",Photocopying Costs,17/04/2014,123478,507.57,Ricoh Uk Ltd
Environmental & Regulatory,Regulatory Services,Housing and Environmental Health ,Supplies & Services,Services,Project Consultancy - Policy,10/04/2014,122910,508.56,Eurofins Environmental Testing Uk Ltd
Central Services to the Public,Emergency Planning,Corporate & Democratic,Supplies & Services,Communications & Computing,Land Line Telephone Charges,17/04/2014,123700,98.1,Virgin Media Payments Ltd
Central Services to the Public,Management & Support Services,Environmental,Supplies & Services,Communications & Computing,Land Line Telephone Charges,17/04/2014,123700,67.6,Virgin Media Payments Ltd
Cultural & Related,Culture & Heritage,Estates and Economic Development ,Supplies & Services,Communications & Computing,Land Line Telephone Charges,17/04/2014,123700,39.68,Virgin Media Payments Ltd
Cultural & Related,Culture & Heritage,Estates and Economic Development ,Supplies & Services,Communications & Computing,Land Line Telephone Charges,17/04/2014,123700,39.2,Virgin Media Payments Ltd
External Trading Accounts,Industrial Estates,Estates and Economic Development ,Supplies & Services,Communications & Computing,Land Line Telephone Charges,17/04/2014,123700,28.46,Virgin Media Payments Ltd
Central Services to the Public,Management & Support Services,IT,Supplies & Services,Communications & Computing,Communication Links,17/04/2014,123700,67,Virgin Media Payments Ltd
Central Services to the Public,Management & Support Services,IT,Supplies & Services,Communications & Computing,Communication Links,17/04/2014,123700,26,Virgin Media Payments Ltd
Cultural & Related,Recreation & Sport,Community and Leisure ,Supplies & Services,Communications & Computing,Land Line Telephone Charges,17/04/2014,123700,26,Virgin Media Payments Ltd
Cultural & Related,Recreation & Sport,Community and Leisure ,Supplies & Services,Communications & Computing,Land Line Telephone Charges,17/04/2014,123700,13,Virgin Media Payments Ltd
Cultural & Related,Culture & Heritage,Community and Leisure ,Supplies & Services,Communications & Computing,Communication Links,17/04/2014,123700,52.17,Virgin Media Payments Ltd
Cultural & Related,Recreation & Sport,Community and Leisure ,Supplies & Services,Communications & Computing,Land Line Telephone Charges,17/04/2014,123700,14.18,Virgin Media Payments Ltd
"Highways, Roads & Transport",Parking Services,Plan Pol & Transport,Supplies & Services,Communications & Computing,Alarm Lines,17/04/2014,123700,37.2,Virgin Media Payments Ltd
Environmental & Regulatory,Waste management,Environmental,Employees,Indirect Employee Expenses,Agency Staff - Waged Posts,24/04/2014,124320,515.14,Simple Recruitment Services Ltd
Environmental & Regulatory,Street Cleansing (not chargeable to Highways),Environmental,Supplies & Services,Communications & Computing,Mobile Telephone Charges,03/04/2014,122897,522,Southern Business Communications
Planning & Development,Economic Development,Estates and Economic Development ,Supplies & Services,Grants & Subscriptions,Grants,02/04/2014,122831,628.04,World Programming Ltd
"Highways, Roads & Transport",Highways and roads - maintenance,Plan Pol & Transport,Supplies & Services,Miscellaneous Expenses,Advertising,10/04/2014,123351,531.25,Hampshire Media Limited
Central Services to the Public,Elections,Legal & Democratic,Supplies & Services,"Printing, Stationery & General Office Expenses",Photocopying Costs,30/04/2014,124848,536.57,Ricoh Uk Ltd
Central Services to the Public,Management & Support Services,Finance,Supplies & Services,"Printing, Stationery & General Office Expenses",Training Courses,17/04/2014,123686,540,Ernst & Young Llp
Central Services to the Public,Management & Support Services,Estates and Economic Development ,Premises related Expenditure,Repairs Alterations & Maintenance of Buildings,Planned Maintenance - Non Est,03/04/2014,122771,544.64,Elecheck (Est) Ltd
Environmental & Regulatory,Waste management,Environmental,Employees,Indirect Employee Expenses,Agency Staff - Waged Posts,03/04/2014,122294,548.2,Simple Recruitment Services Ltd
Cultural & Related,Culture & Heritage,Community and Leisure ,Supplies & Services,Miscellaneous Expenses,Booking Of Acts,10/04/2014,123302,550,Oddsocks Communications Ltd
Cultural & Related,Culture & Heritage,Community and Leisure ,Supplies & Services,"Printing, Stationery & General Office Expenses",Postage Costs,30/04/2014,124752,552.66,Royal Mail
Environmental & Regulatory,Waste management,Environmental,Transport Related Expenditure,Direct Transport Costs,External Garages,30/04/2014,124689,554.05,Vishay Pm Onboard
"Highways, Roads & Transport",Parking Services,Plan Pol & Transport,Supplies & Services,"Equipment, Furniture & Materials",Purchase Equip + Materials,17/04/2014,123204,463.64,Supplies Team Ltd
Planning & Development,Planning Policy,Plan Pol & Transport,Supplies & Services,"Equipment, Furniture & Materials",Purchase Equip + Materials,17/04/2014,123204,93.93,Supplies Team Ltd
Housing Services,Housing Benefits ,Revenues,Supplies & Services,Miscellaneous Expenses,All Pay Fees,17/04/2014,123442,648.36,Allpay Limited
Environmental & Regulatory,Waste management,Environmental,Employees,Indirect Employee Expenses,Agency Staff - Waged Posts,24/04/2014,124243,564.4,Abacus Employment Services Ltd
Central Services to the Public,Management & Support Services,Estates and Economic Development ,Supplies & Services,Services,Professional Fees,17/04/2014,123903,575,Clouds Environmental Consultancy Ltd
Planning & Development,Development Control,Planning & Building,Supplies & Services,"Printing, Stationery & General Office Expenses",Photocopying Costs,10/04/2014,123175,575.67,Ricoh Uk Ltd
Cultural & Related,Culture & Heritage,Community and Leisure ,Supplies & Services,Services,Tutors,10/04/2014,123226,700,Personal data - Data Protection Act 1998
"Highways, Roads & Transport",Public Transport,Plan Pol & Transport,Third Party Payments,Transport Operators in Respect of Concessionary Fares,Voluntary Orgs Reimbursement,30/04/2014,124780,703.35,Wallop Good Neighbours
Central Services to the Public,Management & Support Services,Environmental,Transport Related Expenditure,Direct Transport Costs,Workshop Consumables,30/04/2014,124591,399.94,M D Services
Central Services to the Public,Management & Support Services,Environmental,Transport Related Expenditure,Direct Transport Costs,Repair Materials,30/04/2014,124591,188.63,M D Services
Central Services to the Public,Management & Support Services,Estates and Economic Development ,Third Party Payments,Other Establishments,Private Contractors,10/04/2014,123185,593,Alarms & Electrical (Devizes) Ltd
Planning & Development,Development Control,Planning & Building,Supplies & Services,Miscellaneous Expenses,Health And Safety,30/04/2014,124584,595.13,Abilitynet
Cultural & Related,Open Spaces,Community and Leisure ,Premises related Expenditure,Grounds Maintenance Costs,Gm - Additional Works,24/04/2014,122898,596.53,Atf Supplies Nationwide Ltd
Central Services to the Public,Management & Support Services,Estates and Economic Development ,Third Party Payments,Other Establishments,Private Contractors,03/04/2014,122694,600,Clearwater 2010 Ltd
Cultural & Related,Open Spaces,Environmental,Supplies & Services,"Printing, Stationery & General Office Expenses",Training Courses,17/04/2014,123812,216,Harrow Way Community School
Environmental & Regulatory,Street Cleansing (not chargeable to Highways),Environmental,Supplies & Services,"Printing, Stationery & General Office Expenses",Training Courses,17/04/2014,123812,468,Harrow Way Community School
Environmental & Regulatory,Waste management,Environmental,Supplies & Services,"Printing, Stationery & General Office Expenses",Training Courses,17/04/2014,123812,36,Harrow Way Community School
Central Services to the Public,Management & Support Services,Estates and Economic Development ,Premises related Expenditure,Repairs Alterations & Maintenance of Buildings,Building Maint - Non Estates,24/04/2014,124296,607.16,Cofely Ltd
Environmental & Regulatory,Regulatory Services,Legal & Democratic,Supplies & Services,Grants & Subscriptions,Subscriptions,17/04/2014,123695,610,James Button & Co
Environmental & Regulatory,Waste management,Environmental,Employees,Indirect Employee Expenses,Agency Staff - Waged Posts,30/04/2014,124593,612.32,Abacus Employment Services Ltd
Cultural & Related,Recreation & Sport,Community and Leisure ,Supplies & Services,Services,Professional Fees,02/04/2014,122403,615,11kbw
External Trading Accounts,Industrial Estates,Estates and Economic Development ,Premises related Expenditure,Water Services,Water And Sewerage Charges,17/04/2014,123898,744.64,Southern Water
Environmental & Regulatory,Waste management,Environmental,Transport Related Expenditure,Direct Transport Costs,External Garages,30/04/2014,124699,176.75,Dennis Eagle Ltd
Environmental & Regulatory,Waste management,Environmental,Transport Related Expenditure,Direct Transport Costs,Repair Materials,30/04/2014,124699,447.22,Dennis Eagle Ltd
Central Services to the Public,Management & Support Services,Environmental,Premises related Expenditure,Cleaning and domestic supplies,Cleaning Materials-Purchases,17/04/2014,123678,630.6,M D Services
Central Services to the Public,Management & Support Services,Estates and Economic Development ,Premises related Expenditure,Water Services,Water And Sewerage Charges,17/04/2014,123820,758.91,Southern Water
Environmental & Regulatory,Regulatory Services,Housing and Environmental Health ,Third Party Payments,Other Establishments,Private Contractors,10/04/2014,123309,765,Cedar Pest
Environmental & Regulatory,Waste management,Environmental,Transport Related Expenditure,Direct Transport Costs,Repair Materials,30/04/2014,124682,27.9,M D Services
Central Services to the Public,Management & Support Services,Environmental,Transport Related Expenditure,Direct Transport Costs,Workshop Consumables,30/04/2014,124682,610.3,M D Services
Environmental & Regulatory,Waste management,Environmental,Transport Related Expenditure,Direct Transport Costs,Repair Materials,30/04/2014,124681,658.19,Dennis Eagle Ltd
Cultural & Related,Open Spaces,Environmental,Supplies & Services,"Equipment, Furniture & Materials",Purchase Equip + Materials,24/04/2014,122799,660,Gb Sport & Leisure Uk Ltd
Central Services to the Public,Management & Support Services,Estates and Economic Development ,Third Party Payments,Other Establishments,Private Contractors,30/04/2014,124560,662.05,Churches
Planning & Development,Development Control,Planning & Building,Supplies & Services,"Printing, Stationery & General Office Expenses",Photocopying Costs,10/04/2014,123176,663.96,Ricoh Uk Ltd
Cultural & Related,Culture & Heritage,Community and Leisure ,Supplies & Services,Miscellaneous Expenses,Promotions / Special Events,10/04/2014,122890,665,Hampshire Media Limited
Central Services to the Public,Management & Support Services,Estates and Economic Development ,Supplies & Services,"Equipment, Furniture & Materials",Purchase Materials (Job Cost),03/04/2014,122693,670,Xerox (Uk) Ltd
Central Services to the Public,Management & Support Services,Estates and Economic Development ,Third Party Payments,Other Establishments,Private Contractors,24/04/2014,123970,671,Gibson & Co Ceilings
Central Services to the Public,Management & Support Services,Estates and Economic Development ,Premises related Expenditure,Repairs Alterations & Maintenance of Buildings,Planned Maintenance - Non Est,03/04/2014,122904,672.83,Cofely Ltd
Cultural & Related,Culture & Heritage,Community and Leisure ,Supplies & Services,Miscellaneous Expenses,Booking Of Acts,30/04/2014,124305,673.75,Blunderbus Theatre Company Ltd
Central Services to the Public,Management & Support Services,Estates and Economic Development ,Third Party Payments,Other Establishments,Private Contractors,24/04/2014,124295,675,Doorgear Limited
Environmental & Regulatory,Waste management,Environmental,Supplies & Services,"Equipment, Furniture & Materials",Purchase Equip + Materials,03/04/2014,122281,680,Agripa Solutions Ltd
Planning & Development,Development Control,Planning & Building,Supplies & Services,"Printing, Stationery & General Office Expenses",Stationery,10/04/2014,122992,682.52,Supplies Team Ltd
Central Services to the Public,Management & Support Services,IT,Supplies & Services,Services,Project Consultancy - Systems,24/04/2014,122387,700,Blue Chip
Central Services to the Public,Management & Support Services,IT,Supplies & Services,Services,Project Consultancy - Systems,24/04/2014,122388,700,Blue Chip
Central Services to the Public,Management & Support Services,IT,Supplies & Services,Services,Project Consultancy - Systems,24/04/2014,122389,700,Blue Chip
Environmental & Regulatory,Street Cleansing (not chargeable to Highways),Environmental,Transport Related Expenditure,Direct Transport Costs,Repair Materials,24/04/2014,123735,286.78,Johnston Sweepers Ltd
Central Services to the Public,Management & Support Services,Environmental,Transport Related Expenditure,Direct Transport Costs,Repair Materials,24/04/2014,123735,413.49,Johnston Sweepers Ltd
Central Services to the Public,Management & Support Services,Environmental,Transport Related Expenditure,Direct Transport Costs,Oils,17/04/2014,123330,706.23,Fuchs Lubricants (Uk) Plc
Environmental & Regulatory,Street Cleansing (not chargeable to Highways),Environmental,Employees,Indirect Employee Expenses,Agency Staff - Waged Posts,24/04/2014,124300,711.62,365 Supply Ltd
Central Services to the Public,Management & Support Services,Estates and Economic Development ,Third Party Payments,Other Establishments,Private Contractors,17/04/2014,123805,855,Ashine Cleaning Services Ltd
Cultural & Related,Open Spaces,Community and Leisure ,Premises related Expenditure,Grounds Maintenance Costs,Gm - Additional Works,03/04/2014,122823,855,Greenflints
Central Services to the Public,Management & Support Services,IT,Supplies & Services,"Equipment, Furniture & Materials",Equipment Hire,03/04/2014,122180,551.25,Xerox (Uk) Ltd
Central Services to the Public,Management & Support Services,IT,Supplies & Services,"Equipment, Furniture & Materials",Purchase Equip + Materials,03/04/2014,122180,182.22,Xerox (Uk) Ltd
Cultural & Related,Culture & Heritage,Community and Leisure ,Supplies & Services,Miscellaneous Expenses,Promotions / Special Events,17/04/2014,123690,735,City B Group
Central Services to the Public,Management & Support Services,Revenues,Supplies & Services,"Printing, Stationery & General Office Expenses",Stationery,10/04/2014,123214,738.95,Supplies Team Ltd
Environmental & Regulatory,Waste management,Environmental,Transport Related Expenditure,Direct Transport Costs,External Garages,10/04/2014,122722,631.5,Dennis Eagle Ltd
Environmental & Regulatory,Waste management,Environmental,Transport Related Expenditure,Direct Transport Costs,Repair Materials,10/04/2014,122722,114.37,Dennis Eagle Ltd
Environmental & Regulatory,Waste management,Environmental,Employees,Indirect Employee Expenses,Agency Staff - Waged Posts,17/04/2014,123002,750.6,Simple Recruitment Services Ltd
Cultural & Related,Open Spaces,Environmental,Third Party Payments,Other Establishments,Private Contractors,24/04/2014,124291,901.76,Ivan Gibson Agricultural Contractor
Cultural & Related,Open Spaces,Community and Leisure ,Supplies & Services,Grants & Subscriptions,Grants,03/04/2014,122832,760,Hampshire & Iow Wildlife Trust
Environmental & Regulatory,Waste management,Environmental,Transport Related Expenditure,Direct Transport Costs,Repair Materials,17/04/2014,123316,760,Guaranteed Tool Company Ltd
Central Services to the Public,Management & Support Services,Estates and Economic Development ,Third Party Payments,Other Establishments,Private Contractors,10/04/2014,123180,760,Sonic Scaffolding 2000 Ltd
Environmental & Regulatory,"Cemetery, Cremation and Mortuary Services",Community and Leisure ,Supplies & Services,Miscellaneous Expenses,National Assist Act Burials,30/04/2014,124772,912,Dunnings Funeral Services
Central Services to the Public,Management & Support Services,Finance,Supplies & Services,"Printing, Stationery & General Office Expenses",Postage Costs,03/04/2014,120006,767.27,Tnt Post South West Ltd
Environmental & Regulatory,Street Cleansing (not chargeable to Highways),Environmental,Transport Related Expenditure,Direct Transport Costs,Repair Materials,17/04/2014,123682,769.9,T H White Ltd
Central Services to the Public,Management & Support Services,IT,Supplies & Services,Communications & Computing,Land Line Telephone Charges,17/04/2014,123291,785.27,Virgin Media Payments Ltd
Cultural & Related,Open Spaces,Environmental,Supplies & Services,"Equipment, Furniture & Materials",Purchase Equip + Materials,24/04/2014,124277,787.5,Ahs Ltd
Central Services to the Public,Management & Support Services,Estates and Economic Development ,Premises related Expenditure,Repairs Alterations & Maintenance of Buildings,Planned Maintenance - Non Est,03/04/2014,122770,792.4,Elecheck (Est) Ltd
Planning & Development,Development Control,Planning & Building,Supplies & Services,Services,Project Consultancy - Policy,03/04/2014,122789,795,Reading Agricultural Consultants Ltd
Planning & Development,Development Control,Planning & Building,Supplies & Services,Services,Project Consultancy - Policy,24/04/2014,124284,795,Reading Agricultural Consultants Ltd
Central Services to the Public,Management & Support Services,Estates and Economic Development ,Premises related Expenditure,Repairs Alterations & Maintenance of Buildings,Planned Maintenance - Non Est,24/04/2014,124282,800,Tls Fire & Security Llp
Central Services to the Public,Local Tax Collection,Revenues,Supplies & Services,"Printing, Stationery & General Office Expenses",External Printing,17/04/2014,123297,801.48,Computastat Group Ltd
Environmental & Regulatory,Regulatory Services,Housing and Environmental Health ,Supplies & Services,Grants and subscriptions,Capital Grants,30/04/2014,124769,982.25,Personal data - Data Protection Act 1998
Housing Services,Housing Benefits ,Revenues,Transfer Payments,Housing Benefits,Rent Allows - One Off Payments,17/04/2014,123968,983.29,Wiltshire Council
Environmental & Regulatory,Waste management,Environmental,Employees,Indirect Employee Expenses,Agency Staff - Waged Posts,03/04/2014,122293,819.6,Simple Recruitment Services Ltd
Environmental & Regulatory,Regulatory Services,Housing and Environmental Health ,Supplies & Services,Grants and subscriptions,Capital Grants,02/04/2014,122777,987.25,Personal data - Data Protection Act 1998
Cultural & Related,Culture & Heritage,Community and Leisure ,Supplies & Services,Catering,Non-Contract Catering,03/04/2014,122412,826.33,Carlsberg Uk Ltd
Central Services to the Public,Management & Support Services,Community and Leisure ,Supplies & Services,Grants & Subscriptions,Grants,02/04/2014,122419,1000,Aster Communities
Planning & Development,Community Development,Community and Leisure ,Supplies & Services,Grants & Subscriptions,Grants,30/04/2014,124778,1000,Aster Communities
Central Services,Corporate & Democratic Core,Corporate & Democratic,Supplies & Services,Services,Professional Advice,03/04/2014,122760,833.33,Coffin Mew Llp
Environmental & Regulatory,Regulatory Services,Housing and Environmental Health ,Supplies & Services,Miscellaneous Expenses,Kennel fees,24/04/2014,124273,834,Anton Vets Ltd
Central Services to the Public,Management & Support Services,Estates and Economic Development ,Premises related Expenditure,Energy Costs,Gas,03/04/2014,122123,834.55,Total Gas & Power Ltd
Central Services to the Public,Management & Support Services,Community and Leisure ,Supplies & Services,"Printing, Stationery & General Office Expenses",Photocopying Costs,03/04/2014,122108,835.36,Ricoh Uk Ltd
Planning & Development,Development Control,Planning & Building,Supplies & Services,"Printing, Stationery & General Office Expenses",Written Media,17/04/2014,123665,1015,Hammicks Legal Information Services
Cultural & Related,Culture & Heritage,Community and Leisure ,Supplies & Services,Miscellaneous Expenses,Booking Of Acts,10/04/2014,123305,1022.58,The Pantaloons
Central Services to the Public,Management & Support Services,Chief Executive's,Supplies & Services,"Printing, Stationery & General Office Expenses",External Training Consultants,03/04/2014,122759,868.4,Nationwide Training Limited
Environmental & Regulatory,Waste management,Environmental,Employees,Indirect Employee Expenses,Agency Staff - Waged Posts,24/04/2014,124391,889.99,Simple Recruitment Services Ltd
Central Services to the Public,Management & Support Services,IT,Supplies & Services,Communications & Computing,Land Line Telephone Charges,24/04/2014,123754,900,Virgin Media Payments Ltd
Planning & Development,Economic Development,Estates and Economic Development ,Supplies & Services,Grants & Subscriptions,Grants,30/04/2014,124912,1086,Unique Plumbing
Central Services to the Public,Management & Support Services,Revenues,Employees,Indirect Employee Expenses,Temporary Staff,17/04/2014,123192,906.75,Venn Group Ltd
Central Services to the Public,Management & Support Services,Finance,Supplies & Services,Communications & Computing,Software Maintenance,30/04/2014,120492,927.69,Advanced Business Solutions
Central Services,Corporate & Democratic Core,Corporate & Democratic,Supplies & Services,Communications & Computing,Land Line Telephone Charges,30/04/2014,124601,936.77,Invicta Lifeline Ltd
External Trading Accounts,Industrial Estates,Estates and Economic Development ,Premises related Expenditure,Water Services,Water And Sewerage Charges,17/04/2014,123728,1064.95,Southern Water
Planning & Development,Development Control,Planning & Building,Supplies & Services,Services,Professional Fees,10/04/2014,122129,942,Valuation Office Agency
Central Services to the Public,Management & Support Services,IT,Support Services,IT,IT software licences,03/04/2014,122724,950,Astech Consultants Limited
Central Services to the Public,Management & Support Services,Revenues,Supplies & Services,"Printing, Stationery & General Office Expenses",Stationery,30/04/2014,124850,830.41,Ricoh Uk Ltd
Central Services to the Public,Management & Support Services,Chief Executive's,Supplies & Services,"Printing, Stationery & General Office Expenses",Photocopying Costs,30/04/2014,124850,121.44,Ricoh Uk Ltd
Cultural & Related,Culture & Heritage,Community and Leisure ,Supplies & Services,Catering,Non-Contract Catering,30/04/2014,124397,961.81,Carlsberg Uk Ltd
Cultural & Related,Culture & Heritage,Community and Leisure ,Supplies & Services,Miscellaneous Expenses,Promotions / Special Events,03/04/2014,122802,1165,Tinklertastic Ltd
Cultural & Related,Culture & Heritage,Community and Leisure ,Supplies & Services,Miscellaneous Expenses,Booking Of Acts,30/04/2014,124697,972,Neil Sands Productions
Cultural & Related,Recreation & Sport,Community and Leisure ,Third Party Payments,Private contractors,Main Contractor Costs,24/04/2014,123952,982.5,Hillier Nurseries Limited
Planning & Development,Economic Development,Estates and Economic Development ,Supplies & Services,"Printing, Stationery & General Office Expenses",Training Courses,30/04/2014,124735,1187.5,R&B Industrial Ltd
Central Services to the Public,Management & Support Services,Community and Leisure ,Supplies & Services,Miscellaneous Expenses,Promotions / Special Events,10/04/2014,123518,1200,Picket Twenty Community Association
Central Services to the Public,Management & Support Services,IT,Supplies & Services,Communications & Computing,Computer Hardware,03/04/2014,122191,1200,Solnet
Environmental & Regulatory,Waste management,Environmental,Supplies & Services,Services,Medical Fees,03/04/2014,121155,230,Occupational Health Consultancy Ltd
Environmental & Regulatory,Waste management,Environmental,Supplies & Services,Services,Medical Fees,10/04/2014,121155,300,Occupational Health Consultancy Ltd
Cultural & Related,Open Spaces,Community and Leisure ,Supplies & Services,Services,Medical Fees,10/04/2014,121155,65,Occupational Health Consultancy Ltd
Planning & Development,Development Control,Planning & Building,Supplies & Services,Miscellaneous Expenses,Medical Fees,10/04/2014,121155,250,Occupational Health Consultancy Ltd
Planning & Development,Building Control,Planning & Building,Supplies & Services,Services,Medical Fees,10/04/2014,121155,165,Occupational Health Consultancy Ltd
Cultural & Related,Culture & Heritage,Community and Leisure ,Supplies & Services,Miscellaneous Expenses,Booking Of Acts,10/04/2014,123311,1015.34,Chambers Management
"Highways, Roads & Transport",Parking Services,Plan Pol & Transport,Supplies & Services,Communications & Computing,Software Maintenance,24/04/2014,123667,1018.8,Cobalt Telephone Technologies
Environmental & Regulatory,Waste management,Environmental,Employees,Indirect Employee Expenses,Agency Staff - Waged Posts,10/04/2014,123224,1049.51,365 Supply Ltd
Environmental & Regulatory,Regulatory Services,Estates and Economic Development ,Premises related Expenditure,Water Services,Water And Sewerage Charges,17/04/2014,123828,1271.72,Southern Water
Cultural & Related,Culture & Heritage,Community and Leisure ,Premises related Expenditure,Cleaning and domestic supplies,Cleaning Materials-Purchases,03/04/2014,122782,1071.43,Phs Group Plc
Environmental & Regulatory,Waste management,Environmental,Transport Related Expenditure,Direct Transport Costs,Repair Materials,10/04/2014,122756,1078.65,Dennis Eagle Ltd
"Highways, Roads & Transport",Parking Services,Plan Pol & Transport,Supplies & Services,Services,Professional Fees,17/04/2014,123709,1294.7,Patrol
Central Services to the Public,Management & Support Services,Plan Pol & Transport,Premises related Expenditure,Repairs Alterations & Maintenance of Buildings,General Repairs,17/04/2014,123691,1082.72,Openreach Bt
Planning & Development,Community Development,Community and Leisure ,Supplies & Services,Grants & Subscriptions,Grants,30/04/2014,124779,1319,Andover Malayali Association
Environmental & Regulatory,Waste management,Environmental,Employees,Indirect Employee Expenses,Agency Staff - Waged Posts,17/04/2014,123694,1113.31,Abacus Employment Services Ltd
Cultural & Related,Open Spaces,Environmental,Premises related Expenditure,Energy Costs,Gas,10/04/2014,119691,1120.05,Total Gas & Power Ltd
Central Services to the Public,Management & Support Services,Estates and Economic Development ,Premises related Expenditure,Repairs Alterations & Maintenance of Buildings,Planned Maintenance - Non Est,03/04/2014,122769,1121.1,Elecheck (Est) Ltd
Planning & Development,Economic Development,Estates and Economic Development ,Supplies & Services,Grants & Subscriptions,Grants,17/04/2014,124010,1382.96,Flywalk Ltd
Cultural & Related,Culture & Heritage,Community and Leisure ,Supplies & Services,Miscellaneous Expenses,Booking Of Acts,24/04/2014,124256,1183.13,David Shepherd Productions Ltd
Central Services to the Public,Management & Support Services,Legal & Democratic,Supplies & Services,Services,Legal Fees,30/04/2014,123747,1420,11kbw
Central Services to the Public,Elections,Legal & Democratic,Supplies & Services,"Equipment, Furniture & Materials",Purchase Equip + Materials,30/04/2014,124581,1184,Shaw & Sons Ltd
Environmental & Regulatory,Street Cleansing (not chargeable to Highways),Environmental,Supplies & Services,"Equipment, Furniture & Materials",Purchase Equip + Materials,03/04/2014,122696,1188,Jrb Enterpise Ltd
Central Services to the Public,Management & Support Services,Environmental,Supplies & Services,Communications & Computing,Software Maintenance,17/04/2014,123459,1195,Tecnodiagnostics
Environmental & Regulatory,Street Cleansing (not chargeable to Highways),Environmental,Supplies & Services,"Equipment, Furniture & Materials",Purchase Equip + Materials,30/04/2014,124710,1204.6,Glasdon Uk Ltd
Central Services to the Public,Management & Support Services,IT,Supplies & Services,Communications & Computing,Computer Hardware,17/04/2014,123195,1217.49,E-Buyer (Uk) Limited
Central Services to the Public,Management & Support Services,Environmental,Supplies & Services,Communications & Computing,Software Maintenance,03/04/2014,122299,1222.97,Civica Uk Ltd
Cultural & Related,Culture & Heritage,Community and Leisure ,Supplies & Services,Catering,Caf�/ bar consumables,17/04/2014,123706,11.83,Carlsberg Uk Ltd
Cultural & Related,Culture & Heritage,Community and Leisure ,Supplies & Services,Catering,Non-Contract Catering,17/04/2014,123706,1219.45,Carlsberg Uk Ltd
Cultural & Related,Open Spaces,Environmental,Supplies & Services,"Equipment, Furniture & Materials",Purchase Equip + Materials,24/04/2014,108286,1248,Rigby Taylor Ltd
Cultural & Related,Open Spaces,Environmental,Supplies & Services,"Equipment, Furniture & Materials",Purchase Equip + Materials,24/04/2014,108287,1248,Rigby Taylor Ltd
"Highways, Roads & Transport",Parking Services,Plan Pol & Transport,Supplies & Services,Services,Legal Fees,30/04/2014,124913,1500,Her Majestys Court Service
Environmental & Regulatory,Waste management,Environmental,Transport Related Expenditure,Direct Transport Costs,Repair Materials,17/04/2014,123482,1253.35,Dennis Eagle Ltd
Cultural & Related,Culture & Heritage,Community and Leisure ,Third Party Payments,Private contractors,Main Contractor Costs,24/04/2014,123951,1283.5,Hillier Nurseries Limited
Environmental & Regulatory,Waste management,Environmental,Transport Related Expenditure,Direct Transport Costs,Repair Materials,16/04/2014,123748,1295,Commercial Supplies Ltd
Environmental & Regulatory,Waste management,Environmental,Transport Related Expenditure,Direct Transport Costs,Repair Materials,03/04/2014,122304,1299.96,Dennis Eagle Ltd
Cultural & Related,Open Spaces,Environmental,Supplies & Services,"Equipment, Furniture & Materials",Purchase Equip + Materials,24/04/2014,123986,1353.45,Rigby Taylor Ltd
Central Services to the Public,Management & Support Services,Finance,Supplies & Services,Services,Project Consultancy - Policy,03/04/2014,122723,1622.62,Southampton City Council
Central Services to the Public,Management & Support Services,Finance,Supplies & Services,"Printing, Stationery & General Office Expenses",Postage Costs,30/04/2014,123469,1357.26,Tnt Post South West Ltd
Central Services to the Public,Management & Support Services,Estates and Economic Development ,Premises related Expenditure,Repairs Alterations & Maintenance of Buildings,Planned Maintenance - Non Est,24/04/2014,124260,1388.05,Basingstoke Fire Protection Ltd
Central Services to the Public,Management & Support Services,IT,Supplies & Services,Miscellaneous Expenses,Miscellaneous Capital Expenses,17/04/2014,123334,1400,Blue Chip
Central Services to the Public,Management & Support Services,IT,Supplies & Services,Services,Project Consultancy - Systems,24/04/2014,122386,1400,Blue Chip
Central Services to the Public,Emergency Planning,Corporate & Democratic,Employees,Indirect Employee Expenses,Agency Staff - Waged Posts,24/04/2014,124334,1405.09,365 Supply Ltd
Cultural & Related,Open Spaces,Environmental,Supplies & Services,"Equipment, Furniture & Materials",Purchase Equip + Materials,17/04/2014,123721,1410,Kings Worthy Garden Machinery Ltd
Cultural & Related,Recreation & Sport,Community and Leisure ,Premises related Expenditure,Grounds Maintenance Costs,Gm - Additional Works,03/04/2014,122786,1410,Personal data - Data Protection Act 1998
Cultural & Related,Open Spaces,Environmental,Supplies & Services,"Equipment, Furniture & Materials",Purchase Equip + Materials,03/04/2014,122423,1420,Fleet (Line Markers) Ltd
Central Services to the Public,Management & Support Services,Estates and Economic Development ,Supplies & Services,Services,Professional Fees,30/04/2014,124562,1437,Bnp Paribas Real Estate & Property Mgt Uk Ltd
Environmental & Regulatory,Regulatory Services,Housing and Environmental Health ,Supplies & Services,Grants and subscriptions,Capital Grants,10/04/2014,123519,1757,Prism Medical Uk
External Trading Accounts,Industrial Estates,Estates and Economic Development ,Premises related Expenditure,Repairs Alterations & Maintenance of Buildings,Planned Maintenance - Non Est,03/04/2014,122703,1470,Rentokil Initial Uk Ltd
Environmental & Regulatory,Waste management,Environmental,Employees,Indirect Employee Expenses,Agency Staff - Waged Posts,24/04/2014,124001,1480.08,365 Supply Ltd
Central Services to the Public,Management & Support Services,Finance,Supplies & Services,Communications & Computing,Software Maintenance,10/04/2014,123223,741.4,Bottomline Technologies Ltd
Central Services to the Public,Local Tax Collection,Revenues,Supplies & Services,Communications & Computing,Software Maintenance,10/04/2014,123223,370.7,Bottomline Technologies Ltd
Housing Services,Housing Benefits ,Revenues,Supplies & Services,Communications & Computing,Software Maintenance,10/04/2014,123223,370.7,Bottomline Technologies Ltd
Planning & Development,Development Control,Planning & Building,Supplies & Services,Miscellaneous Expenses,Planning Appeal Costs,30/04/2014,124678,1795.8,Cornerstone Barristers
Cultural & Related,Culture & Heritage,Community and Leisure ,Supplies & Services,Miscellaneous Expenses,Booking Of Acts,17/04/2014,123745,1500,Personal data - Data Protection Act 1998
Central Services to the Public,Management & Support Services,Finance,Supplies & Services,"Printing, Stationery & General Office Expenses",Postage Costs,30/04/2014,123225,1505.92,Tnt Post South West Ltd
Cultural & Related,Culture & Heritage,Estates and Economic Development ,Supplies & Services,Services,Professional Fees,17/04/2014,123524,1550,The Genesis Design Studio Ltd
Cultural & Related,Culture & Heritage,Community and Leisure ,Supplies & Services,Miscellaneous Expenses,Booking Of Acts,03/04/2014,122980,1558.08,Personal data - Data Protection Act 1998
Environmental & Regulatory,"Cemetery, Cremation and Mortuary Services",Community and Leisure ,Supplies & Services,Miscellaneous Expenses,National Assist Act Burials,16/04/2014,123905,1870,A H Cheater
Cultural & Related,Open Spaces,Environmental,Supplies & Services,Miscellaneous Expenses,Waste Collection,10/04/2014,123457,1572.88,Veolia Es Hampshire Ltd
Central Services to the Public,Elections,Legal & Democratic,Supplies & Services,"Printing, Stationery & General Office Expenses",Training Courses,10/04/2014,123187,1581.72,The Association Of Electoral Administrators
Central Services to the Public,Local Tax Collection,Revenues,Supplies & Services,Communications & Computing,Computer Software,03/04/2014,122697,1586.64,Konica Minolta Business Soltns (Uk) Ltd
Central Services to the Public,Management & Support Services,IT,Supplies & Services,Services,Project Consultancy - Systems,30/04/2014,124582,1590,Integrated Solutions Ltd
Cultural & Related,Culture & Heritage,Community and Leisure ,Supplies & Services,Miscellaneous Expenses,Booking Of Acts,03/04/2014,122718,1595.66,Barry Collings Entertainments
Central Services to the Public,Management & Support Services,Estates and Economic Development ,Supplies & Services,"Printing, Stationery & General Office Expenses",Training Courses,24/04/2014,122991,151,Allied Driving Schools Ltd
Cultural & Related,Open Spaces,Environmental,Supplies & Services,"Printing, Stationery & General Office Expenses",Training Courses,24/04/2014,122991,731,Allied Driving Schools Ltd
Environmental & Regulatory,Street Cleansing (not chargeable to Highways),Environmental,Supplies & Services,"Printing, Stationery & General Office Expenses",Training Courses,24/04/2014,122991,365.5,Allied Driving Schools Ltd
Environmental & Regulatory,Waste management,Environmental,Supplies & Services,"Printing, Stationery & General Office Expenses",Training Courses,24/04/2014,122991,75.5,Allied Driving Schools Ltd
Central Services to the Public,Management & Support Services,Environmental,Supplies & Services,"Printing, Stationery & General Office Expenses",Training Courses,24/04/2014,122991,302,Allied Driving Schools Ltd
"Highways, Roads & Transport",Highways and roads - maintenance,Plan Pol & Transport,Supplies & Services,"Equipment, Furniture & Materials",Purchase Equip + Materials,24/04/2014,123976,1632,Signway Supplies (Datchet Ltd)
Cultural & Related,Tourism,Estates and Economic Development ,Supplies & Services,Grants & Subscriptions,Subscriptions,24/04/2014,124394,1639,Tourism South East
Cultural & Related,Culture & Heritage,Community and Leisure ,Supplies & Services,Miscellaneous Expenses,Promotions / Special Events,03/04/2014,122813,1975,Lpc Printing
Environmental & Regulatory,Regulatory Services,Housing and Environmental Health ,Supplies & Services,Grants and subscriptions,Capital Grants,24/04/2014,124423,1979.18,Studio Four Architects Ltd
Cultural & Related,Open Spaces,Environmental,Transport Related Expenditure,Direct Transport Costs,Oils,30/04/2014,124693,750,Spaldings (Uk) Limited
Cultural & Related,Open Spaces,Environmental,Supplies & Services,"Equipment, Furniture & Materials",Purchase Equip + Materials,30/04/2014,124693,904.2,Spaldings (Uk) Limited
Cultural & Related,Culture & Heritage,Community and Leisure ,Supplies & Services,Miscellaneous Expenses,Booking Of Acts,09/04/2014,122979,1657.19,Vienna Festival Ballet
Planning & Development,Economic Development,Estates and Economic Development ,Supplies & Services,Grants & Subscriptions,Grants,10/04/2014,123521,2000,Chillys Watercress
Planning & Development,Economic Development,Estates and Economic Development ,Supplies & Services,Grants & Subscriptions,Grants,10/04/2014,123522,2000,T Minter & J Evans Llp T/A The Crown Inn
Planning & Development,Economic Development,Estates and Economic Development ,Supplies & Services,Grants & Subscriptions,Grants,10/04/2014,123523,2000,S Carlile T/A Romsey Car Centre
Planning & Development,Economic Development,Estates and Economic Development ,Supplies & Services,Grants & Subscriptions,Grants,10/04/2014,123525,2000,Southern Stainless Ltd
Central Services to the Public,Management & Support Services,Estates and Economic Development ,Third Party Payments,Other Establishments,Private Contractors,10/04/2014,123183,1673.4,Anchor Pipework Ltd
Central Services to the Public,Management & Support Services,Legal & Democratic,Supplies & Services,Communications & Computing,Computer Software,24/04/2014,124294,1700,Deltascheme
"Highways, Roads & Transport",Public Transport,Plan Pol & Transport,Third Party Payments,Transport Operators in Respect of Concessionary Fares,Voluntary Orgs Reimbursement,10/04/2014,123527,2053,Andover Neighbourcare
Central Services to the Public,Management & Support Services,Estates and Economic Development ,Premises related Expenditure,Energy Costs,Gas,03/04/2014,122116,1727.72,Total Gas & Power Ltd
Cultural & Related,Open Spaces,Environmental,Supplies & Services,"Equipment, Furniture & Materials",Purchase Equip + Materials,30/04/2014,123339,1750.5,Rigby Taylor Ltd
Central Services to the Public,Management & Support Services,Finance,Supplies & Services,"Printing, Stationery & General Office Expenses",Postage Costs,03/04/2014,120726,1756.23,Tnt Post South West Ltd
Central Services,Corporate & Democratic Core,Corporate & Democratic,Supplies & Services,"Equipment, Furniture & Materials",Purchase Equip + Materials,24/04/2014,123739,1780,Emerald Colour
Central Services to the Public,Management & Support Services,Estates and Economic Development ,Premises related Expenditure,Repairs Alterations & Maintenance of Buildings,Building Maint - Non Estates,24/04/2014,124298,1799.91,Cofely Ltd
Environmental & Regulatory,Waste management,Environmental,Supplies & Services,"Equipment, Furniture & Materials",Equipment Lease Rentals,10/04/2014,123009,1800,Sg Equipment Finance Ltd
Environmental & Regulatory,Regulatory Services,Housing and Environmental Health ,Supplies & Services,Grants and subscriptions,Capital Grants,03/04/2014,122774,2193.1,Aster Property
Central Services to the Public,Local Tax Collection,Revenues,Supplies & Services,Communications & Computing,Software Maintenance,30/04/2014,124663,183.65,Northgate Information Solutions Uk Ltd
Central Services to the Public,Local Tax Collection,Revenues,Supplies & Services,Communications & Computing,Software Maintenance,30/04/2014,124663,734.61,Northgate Information Solutions Uk Ltd
Housing Services,Housing Benefits ,Revenues,Supplies & Services,Communications & Computing,Software Maintenance,30/04/2014,124663,459.14,Northgate Information Solutions Uk Ltd
Central Services to the Public,Local Tax Collection,Revenues,Supplies & Services,Communications & Computing,Software Maintenance,30/04/2014,124663,459.13,Northgate Information Solutions Uk Ltd
Environmental & Regulatory,Regulatory Services,Housing and Environmental Health ,Transport Related Expenditure,Contract Hire and Operating Leases,Officer lease cars,17/04/2014,123732,2240.67,Alphabet (Gb) Ltd
Planning & Development,Development Control,Planning & Building,Supplies & Services,"Printing, Stationery & General Office Expenses",Photocopying Costs,30/04/2014,124731,1905.39,Ricoh Uk Ltd
Central Services to the Public,Management & Support Services,Plan Pol & Transport,Premises related Expenditure,Repairs Alterations & Maintenance of Buildings,General Repairs,24/04/2014,123945,1950,Coupe Line
External Trading Accounts,Industrial Estates,Estates and Economic Development ,Premises related Expenditure,Energy Costs,Gas,10/04/2014,122317,1956.44,Total Gas & Power Ltd
Cultural & Related,Culture & Heritage,Community and Leisure ,Supplies & Services,"Equipment, Furniture & Materials",Purchase Equip + Materials,03/04/2014,122702,1970,Tickets.Com Ltd
Central Services to the Public,Management & Support Services,Estates and Economic Development ,Third Party Payments,Other Establishments,Contract Catering,24/04/2014,123964,1972.55,Edwards And Ward Ltd
Planning & Development,Building Control,Planning & Building,Supplies & Services,Grants & Subscriptions,Subscriptions,17/04/2014,124014,1973.45,Labc Training
Central Services to the Public,Management & Support Services,Plan Pol & Transport,Premises related Expenditure,Repairs Alterations & Maintenance of Buildings,General Repairs,24/04/2014,123979,1975.16,Signway Supplies (Datchet Ltd)
Cultural & Related,Open Spaces,Environmental,Employees,Indirect Employee Expenses,Agency Staff - Waged Posts,24/04/2014,124286,2002.63,365 Supply Ltd
Cultural & Related,Open Spaces,Community and Leisure ,Supplies & Services,"Equipment, Furniture & Materials",Purchase Equip + Materials,03/04/2014,122826,2021,Intratest Ltd
Environmental & Regulatory,Street Cleansing (not chargeable to Highways),Environmental,Supplies & Services,"Equipment, Furniture & Materials",Purchase Equip + Materials,03/04/2014,122754,2038.9,Glasdon Uk Ltd
Cultural & Related,Culture & Heritage,Community and Leisure ,Premises related Expenditure,Energy Costs,Electricity,17/04/2014,123708,1137.56,Sparsholt College Hampshire
Cultural & Related,Culture & Heritage,Community and Leisure ,Premises related Expenditure,Energy Costs,Gas,17/04/2014,123708,694.7,Sparsholt College Hampshire
Cultural & Related,Culture & Heritage,Community and Leisure ,Premises related Expenditure,Water Services,Water And Sewerage Charges,17/04/2014,123708,254.34,Sparsholt College Hampshire
Environmental & Regulatory,Regulatory Services,Housing and Environmental Health ,Supplies & Services,Grants and subscriptions,Capital Grants,03/04/2014,122775,2527.65,Aster Property
"Highways, Roads & Transport",Parking Services,Plan Pol & Transport,Third Party Payments,Private contractors,Main Contractor Costs,24/04/2014,123978,2161.15,Signway Supplies (Datchet Ltd)
External Trading Accounts,Industrial Estates,Estates and Economic Development ,Premises related Expenditure,Repairs Alterations & Maintenance of Buildings,Planned Maintenance - Non Est,03/04/2014,122708,193.75,Temple Lifts Ltd
Cultural & Related,Tourism,Estates and Economic Development ,Premises related Expenditure,Repairs Alterations & Maintenance of Buildings,Planned Maintenance - Non Est,03/04/2014,122708,18.75,Temple Lifts Ltd
Cultural & Related,Culture & Heritage,Estates and Economic Development ,Premises related Expenditure,Repairs Alterations & Maintenance of Buildings,Planned Maintenance - Non Est,03/04/2014,122708,193.75,Temple Lifts Ltd
Cultural & Related,Culture & Heritage,Estates and Economic Development ,Premises related Expenditure,Repairs Alterations & Maintenance of Buildings,Planned Maintenance - Non Est,03/04/2014,122708,18.75,Temple Lifts Ltd
Central Services to the Public,Management & Support Services,Estates and Economic Development ,Premises related Expenditure,Repairs Alterations & Maintenance of Buildings,Planned Maintenance - Non Est,03/04/2014,122708,775,Temple Lifts Ltd
Cultural & Related,Recreation & Sport,Community and Leisure ,Premises related Expenditure,Repairs Alterations & Maintenance of Buildings,Planned Maintenance - Non Est,03/04/2014,122708,775,Temple Lifts Ltd
Cultural & Related,Recreation & Sport,Community and Leisure ,Premises related Expenditure,Repairs Alterations & Maintenance of Buildings,Planned Maintenance - Non Est,03/04/2014,122708,193.75,Temple Lifts Ltd
Cultural & Related,Culture & Heritage,Community and Leisure ,Supplies & Services,Miscellaneous Expenses,Booking Of Acts,24/04/2014,124253,2173.58,Newbury Productions (Uk) Ltd
Central Services to the Public,Management & Support Services,Estates and Economic Development ,Premises related Expenditure,Repairs Alterations & Maintenance of Buildings,Building Maint - Non Estates,03/04/2014,122788,2191,Edu-Care Recycling Uk
Environmental & Regulatory,Regulatory Services,Estates and Economic Development ,Premises related Expenditure,Water Services,Water And Sewerage Charges,17/04/2014,123893,2673.46,Southern Water
Central Services to the Public,Management & Support Services,Estates and Economic Development ,Third Party Payments,Other Establishments,Private Contractors,10/04/2014,123181,2240,Sonic Scaffolding 2000 Ltd
Environmental & Regulatory,Regulatory Services,Housing and Environmental Health ,Supplies & Services,Grants and subscriptions,Capital Grants,02/04/2014,122783,2690.75,"Peter Martin, Plumbing & Carpentry"
Central Services to the Public,Management & Support Services,Chief Executive's,Supplies & Services,Communications & Computing,Software Maintenance,17/04/2014,122795,2265,Capita Business Services
Environmental & Regulatory,Regulatory Services,Housing and Environmental Health ,Supplies & Services,Grants and subscriptions,Capital Grants,30/04/2014,124889,2768.28,Nhp (Romsey) Ltd
Central Services to the Public,Management & Support Services,Environmental,Transport Related Expenditure,Direct Transport Costs,Diesel,24/04/2014,123749,2378.62,Wessex Petroleum Limited
Environmental & Regulatory,Waste management,Environmental,Employees,Indirect Employee Expenses,Agency Staff - Waged Posts,03/04/2014,122899,2380.36,365 Supply Ltd
Cultural & Related,Open Spaces,Environmental,Premises related Expenditure,Water Services,Water And Sewerage Charges,24/04/2014,124346,2887.54,Southern Water
Environmental & Regulatory,Regulatory Services,Housing and Environmental Health ,Supplies & Services,Grants and subscriptions,Capital Grants,24/04/2014,124425,2928.5,Personal data - Data Protection Act 1998
Planning & Development,Community Development,Community and Leisure ,Supplies & Services,Grants & Subscriptions,Grants,16/04/2014,123886,3000,Romsey Arts Festival
Planning & Development,Community Development,Community and Leisure ,Supplies & Services,Grants & Subscriptions,Grants,30/04/2014,124771,3000,Relate South West Hampshire & Isle Of Wight
Environmental & Regulatory,Regulatory Services,Housing and Environmental Health ,Supplies & Services,Grants and subscriptions,Capital Grants,30/04/2014,124904,3045.06,Moorview (South Coast) Ltd
Planning & Development,Economic Development,Estates and Economic Development ,Supplies & Services,Services,Professional Fees,24/04/2014,123904,2550,East West Locations Ltd
Central Services to the Public,Management & Support Services,IT,Supplies & Services,Communications & Computing,Computer Hardware,10/04/2014,122276,2550,Nce Computer Group (Europe) Ltd
Central Services to the Public,Management & Support Services,Estates and Economic Development ,Third Party Payments,Other Establishments,Private Contractors,10/04/2014,123182,2562,Anchor Pipework Ltd
Cultural & Related,Open Spaces,Environmental,Supplies & Services,"Equipment, Furniture & Materials",Purchase Equip + Materials,10/04/2014,122895,2563.97,Groundsman Tools & Supplies
Environmental & Regulatory,Regulatory Services,Housing and Environmental Health ,Supplies & Services,Grants and subscriptions,Capital Grants,30/04/2014,124891,3089.24,Lifestyle Solutions
Environmental & Regulatory,Regulatory Services,Estates and Economic Development ,Premises related Expenditure,Repairs Alterations & Maintenance of Buildings,Planned Maintenance - Non Est,03/04/2014,122907,2176,Wallgate Ltd
Cultural & Related,Open Spaces,Community and Leisure ,Premises related Expenditure,Repairs Alterations & Maintenance of Buildings,Planned Maintenance - Non Est,03/04/2014,122907,408,Wallgate Ltd
Central Services to the Public,Management & Support Services,IT,Support Services,IT,IT software licences,03/04/2014,90255,2625,Advanced Business Solutions
Central Services to the Public,Management & Support Services,Plan Pol & Transport,Premises related Expenditure,Repairs Alterations & Maintenance of Buildings,General Repairs,30/04/2014,122692,2650,Rocon Contractors Ltd
Central Services to the Public,Management & Support Services,IT,Supplies & Services,Communications & Computing,Software Maintenance,24/04/2014,123944,2693.88,Open Reality
Central Services to the Public,Management & Support Services,Environmental,Transport Related Expenditure,Direct Transport Costs,Vehicles and Plant,17/04/2014,123699,2800,Under Pressure
Cultural & Related,Open Spaces,Environmental,Premises related Expenditure,Water Services,Water And Sewerage Charges,10/04/2014,123472,3377.58,Southern Water
Central Services to the Public,Management & Support Services,Estates and Economic Development ,Premises related Expenditure,Repairs Alterations & Maintenance of Buildings,Planned Maintenance - Non Est,03/04/2014,122768,2870.4,Elecheck (Est) Ltd
"Highways, Roads & Transport",Parking Services,Plan Pol & Transport,Supplies & Services,Services,Professional Fees,24/04/2014,124322,2909.17,G4s Cash Services (Uk) Ltd
Central Services to the Public,Management & Support Services,IT,Supplies & Services,Communications & Computing,Computer Hardware,10/04/2014,123342,2960.01,Dell Computer Corporation Ltd
Cultural & Related,Open Spaces,Community and Leisure ,Premises related Expenditure,Grounds Maintenance Costs,Non Contract Tree Works,03/04/2014,109590,1164.7,Gristwood & Toms Ltd
Cultural & Related,Open Spaces,Community and Leisure ,Premises related Expenditure,Grounds Maintenance Costs,Non Contract Tree Works,03/04/2014,109590,423.21,Gristwood & Toms Ltd
Cultural & Related,Open Spaces,Community and Leisure ,Premises related Expenditure,Grounds Maintenance Costs,Non Contract Tree Works,03/04/2014,109590,1425.09,Gristwood & Toms Ltd
Central Services to the Public,Management & Support Services,Estates and Economic Development ,Third Party Payments,Other Establishments,Private Contractors,17/04/2014,123744,3235,Studio Four Architects Ltd
Central Services to the Public,Management & Support Services,Environmental,Transport Related Expenditure,Direct Transport Costs,Diesel,17/04/2014,123688,3261.3,Wessex Petroleum Limited
Central Services to the Public,Management & Support Services,Environmental,Transport Related Expenditure,Direct Transport Costs,Diesel,17/04/2014,123307,3263.47,Wessex Petroleum Limited
Central Services to the Public,Management & Support Services,Environmental,Supplies & Services,"Equipment, Furniture & Materials",Maintenance Equip + Materials,03/04/2014,122295,3266,Gallagher Flooring Ltd
Cultural & Related,Open Spaces,Environmental,Transport Related Expenditure,Direct Transport Costs,Repair Materials,30/04/2014,124403,3302.82,Spaldings (Uk) Limited
Planning & Development,Planning Policy,Plan Pol & Transport,Transport Related Expenditure,Contract Hire and Operating Leases,Officer lease cars,17/04/2014,123456,3989.26,Inchcape Fleet Solutions Ltd
Planning & Development,Economic Development,Estates and Economic Development ,Supplies & Services,Grants & Subscriptions,Subscriptions,17/04/2014,123701,4000,Enterprise First
Cultural & Related,Culture & Heritage,Community and Leisure ,Supplies & Services,Miscellaneous Expenses,Booking Of Acts,10/04/2014,123173,3420.36,Handshake Ltd
Environmental & Regulatory,Regulatory Services,Housing and Environmental Health ,Supplies & Services,Grants and subscriptions,Capital Grants,30/04/2014,124905,4164.27,Nhp (Romsey) Ltd
Cultural & Related,Culture & Heritage,Community and Leisure ,Third Party Payments,Private contractors,Main Contractor Costs,24/04/2014,124293,3480,Rocon Contractors Ltd
Environmental & Regulatory,Waste management,Environmental,Supplies & Services,Services,Medical Fees,10/04/2014,123460,2016,Occupational Health Consultancy Ltd
Environmental & Regulatory,Community Safety,Community and Leisure ,Supplies & Services,Services,Medical Fees,10/04/2014,123460,750,Occupational Health Consultancy Ltd
Planning & Development,Planning Policy,Plan Pol & Transport,Supplies & Services,Services,Medical Fees,10/04/2014,123460,750,Occupational Health Consultancy Ltd
Central Services to the Public,Management & Support Services,Plan Pol & Transport,Premises related Expenditure,Repairs Alterations & Maintenance of Buildings,General Repairs,30/04/2014,123819,3621.66,Openreach Bt
Central Services to the Public,Management & Support Services,Environmental,Transport Related Expenditure,Direct Transport Costs,Diesel,10/04/2014,122811,3298.93,Wessex Petroleum Limited
Central Services to the Public,Management & Support Services,Environmental,Transport Related Expenditure,Direct Transport Costs,Red Derv,10/04/2014,122811,396.68,Wessex Petroleum Limited
Cultural & Related,Open Spaces,Community and Leisure ,Supplies & Services,Grants & Subscriptions,Grants,03/04/2014,122730,4400,Hampshire & Iow Wildlife Trust
Central Services to the Public,Management & Support Services,Revenues,Supplies & Services,"Printing, Stationery & General Office Expenses",Postage Costs,10/04/2014,123292,168.41,Royal Mail
Central Services to the Public,Local Tax Collection,Revenues,Supplies & Services,"Printing, Stationery & General Office Expenses",Postage Costs,10/04/2014,123292,3561.11,Royal Mail
Central Services to the Public,Local Tax Collection,Revenues,Supplies & Services,"Printing, Stationery & General Office Expenses",External Printing,17/04/2014,123294,3743.39,Computastat Group Ltd
Central services to the public,"General Grants, Bequests and Donations",Housing and Environmental Health ,Supplies & Services,Grants and subscriptions,Capital Grants,10/04/2014,123514,4567.5,Colonel Jenkins Memorial Hall
Environmental & Regulatory,Regulatory Services,Housing and Environmental Health ,Supplies & Services,Grants and subscriptions,Capital Grants,02/04/2014,122779,4591.2,Personal data - Data Protection Act 1998
Environmental & Regulatory,Regulatory Services,Housing and Environmental Health ,Supplies & Services,Grants and subscriptions,Capital Grants,24/04/2014,124426,4730.62,Prb Building Services
Cultural & Related,Recreation & Sport,Community and Leisure ,Third Party Payments,Private contractors,Main Contractor Costs,17/04/2014,116550,3962.25,Faraday Fabrication And Welding Ltd
Environmental & Regulatory,Regulatory Services,Housing and Environmental Health ,Supplies & Services,Grants and subscriptions,Capital Grants,30/04/2014,124892,4800,Epw Construction
Planning & Development,Community Development,Community and Leisure ,Supplies & Services,Grants & Subscriptions,Grants,30/04/2014,124674,4826,Hampshire County Council
Central Services to the Public,Management & Support Services,Finance,Supplies & Services,"Printing, Stationery & General Office Expenses",Postage Costs,30/04/2014,124874,5000,Neopost Ltd
Planning & Development,Economic Development,Estates and Economic Development ,Supplies & Services,Grants & Subscriptions,Subscriptions,03/04/2014,122978,5000,Hampshire County Council
Planning & Development,Community Development,Community and Leisure ,Employees,Indirect Employee Expenses,Temporary Staff,30/04/2014,124673,5109,Winchester City Council
Environmental & Regulatory,Waste management,Environmental,Supplies & Services,"Equipment, Furniture & Materials",Purchase Equip + Materials,17/04/2014,123751,4270.25,Egbert H Taylor & Co Ltd
Central Services to the Public,Management & Support Services,Environmental,Transport Related Expenditure,Direct Transport Costs,Diesel,24/04/2014,123750,4322.8,Wessex Petroleum Limited
Central Services to the Public,Management & Support Services,Environmental,Transport Related Expenditure,Direct Transport Costs,Diesel,30/04/2014,124401,3806.23,Wessex Petroleum Limited
Central Services to the Public,Management & Support Services,Environmental,Transport Related Expenditure,Direct Transport Costs,Red Derv,30/04/2014,124401,613.6,Wessex Petroleum Limited
Planning & Development,Economic Development,Estates and Economic Development ,Supplies & Services,Grants & Subscriptions,Grants,24/04/2014,124429,5396,Romsey Car Centre
Central Services to the Public,Management & Support Services,IT,Supplies & Services,Services,Project Consultancy - Systems,10/04/2014,123359,4500,Northgate Information Solutions Uk Ltd
Central Services to the Public,Local Land Charges,Legal & Democratic,Supplies & Services,Miscellaneous Expenses,Land Charges Fees,17/04/2014,123818,5427.15,Hampshire County Council
Cultural & Related,Open Spaces,Environmental,Transport Related Expenditure,Direct Transport Costs,Tyres,17/04/2014,123470,1291.14,Ats Euromaster Limited
Environmental & Regulatory,Street Cleansing (not chargeable to Highways),Environmental,Transport Related Expenditure,Direct Transport Costs,Tyres,17/04/2014,123470,877.21,Ats Euromaster Limited
Environmental & Regulatory,Waste management,Environmental,Transport Related Expenditure,Direct Transport Costs,Tyres,17/04/2014,123470,1984.79,Ats Euromaster Limited
Central Services to the Public,Management & Support Services,Estates and Economic Development ,Transport Related Expenditure,Direct Transport Costs,Tyres,17/04/2014,123470,14.27,Ats Euromaster Limited
Environmental & Regulatory,Regulatory Services,Estates and Economic Development ,Transport Related Expenditure,Direct Transport Costs,Tyres,17/04/2014,123470,126.06,Ats Euromaster Limited
Environmental & Regulatory,Community Safety,Community and Leisure ,Transport Related Expenditure,Direct Transport Costs,Tyres,17/04/2014,123470,230.18,Ats Euromaster Limited
Central Services to the Public,Management & Support Services,Chief Executive's,Transport Related Expenditure,Contract Hire and Operating Leases,Officer lease cars,17/04/2014,123324,5494.08,Tch Leasing
Central Services to the Public,Management & Support Services,Environmental,Transport Related Expenditure,Direct Transport Costs,Diesel,10/04/2014,122812,4720.47,Wessex Petroleum Limited
Central Services to the Public,Management & Support Services,IT,Supplies & Services,Services,Project Consultancy - Systems,30/04/2014,124398,4750,Quadsys
"Highways, Roads & Transport",Parking Services,Plan Pol & Transport,Supplies & Services,Services,Professional Fees,24/04/2014,124331,4799.7,G4s Cash Services (Uk) Ltd
Central Services to the Public,Management & Support Services,Chief Executive's,Transport Related Expenditure,Contract Hire and Operating Leases,Officer lease cars,17/04/2014,123455,5858.53,Inchcape Fleet Solutions Ltd
"Highways, Roads & Transport",Parking Services,Plan Pol & Transport,Premises related Expenditure,Repairs Alterations & Maintenance of Buildings,Car Parks - Signs + Lines,30/04/2014,124292,4913.3,Signway Supplies (Datchet Ltd)
External Trading Accounts,Industrial Estates,Estates and Economic Development ,Supplies & Services,Services,Professional Fees,03/04/2014,122808,5000,London Clancy
Central Services,Corporate & Democratic Core,Corporate & Democratic,Supplies & Services,Grants & Subscriptions,Subscriptions,10/04/2014,122892,5129.52,South East Employers
Central Services to the Public,Elections,Legal & Democratic,Supplies & Services,"Equipment, Furniture & Materials",Purchase Equip + Materials,03/04/2014,122186,5150,C Bradbury Ltd
Cultural & Related,Open Spaces,Community and Leisure ,Premises related Expenditure,Grounds Maintenance Costs,Gm - Additional Works,03/04/2014,122825,5255,Personal data - Data Protection Act 1998
Central Services to the Public,Management & Support Services,IT,Support Services,IT,IT Hardware costs,10/04/2014,123492,4873,Nce Computer Group (Europe) Ltd
Central Services to the Public,Management & Support Services,IT,Supplies & Services,Communications & Computing,Computer Hardware,10/04/2014,123492,12.5,Nce Computer Group (Europe) Ltd
Central Services to the Public,Management & Support Services,IT,Supplies & Services,Communications & Computing,Hardware Maintenance,10/04/2014,123492,506,Nce Computer Group (Europe) Ltd
Central Services,Corporate & Democratic Core,Corporate & Democratic,Supplies & Services,Communications & Computing,Computer Software,24/04/2014,123946,5500,Astech Consultants Limited
Environmental & Regulatory,Waste management,Environmental,Supplies & Services,Miscellaneous Expenses,Recycling Bank Emptying,10/04/2014,123491,5562,Fcc Recycling (Uk) Ltd
Central Services to the Public,Local Tax Collection,Revenues,Supplies & Services,Communications & Computing,Software Maintenance,17/04/2014,123217,576.8,Northgate Information Solutions Uk Ltd
Central Services to the Public,Local Tax Collection,Revenues,Supplies & Services,Communications & Computing,Software Maintenance,17/04/2014,123217,2307.2,Northgate Information Solutions Uk Ltd
Housing Services,Housing Benefits ,Revenues,Supplies & Services,Communications & Computing,Software Maintenance,17/04/2014,123217,1442,Northgate Information Solutions Uk Ltd
Central Services to the Public,Local Tax Collection,Revenues,Supplies & Services,Communications & Computing,Software Maintenance,17/04/2014,123217,1442,Northgate Information Solutions Uk Ltd
Central Services to the Public,Management & Support Services,Environmental,Transport Related Expenditure,Direct Transport Costs,Diesel,30/04/2014,124400,5397.08,Wessex Petroleum Limited
Central Services to the Public,Management & Support Services,Environmental,Transport Related Expenditure,Direct Transport Costs,Red Derv,30/04/2014,124400,614.21,Wessex Petroleum Limited
Central Services to the Public,Management & Support Services,Finance,Employees,Direct Employee Expenses,Shared service staffing costs,02/04/2014,122133,6035,Gosport Borough Council
Planning & Development,Economic Development,Estates and Economic Development ,Supplies & Services,Grants & Subscriptions,Grants,24/04/2014,124428,7256.65,The Crown Inn
Cultural & Related,Culture & Heritage,Community and Leisure ,Supplies & Services,Services,Project Consultancy - Policy,16/04/2014,123834,7500,Encounters Arts
Central Services to the Public,Local Tax Collection,Revenues,Supplies & Services,"Printing, Stationery & General Office Expenses",External Printing,17/04/2014,123293,6399.97,Computastat Group Ltd
Central Services to the Public,Elections,Legal & Democratic,Supplies & Services,"Equipment, Furniture & Materials",Purchase Equip + Materials,30/04/2014,124569,6476,Storm Technologies
Central Services to the Public,Management & Support Services,Finance,Employees,Direct Employee Expenses,Shared service staffing costs,30/04/2014,124314,6664,Gosport Borough Council
Central Services to the Public,Management & Support Services,IT,Supplies & Services,Communications & Computing,Computer Software,10/04/2014,123196,7242.07,Phoenix Software Ltd
Planning & Development,Economic Development,Estates and Economic Development ,Supplies & Services,Grants & Subscriptions,Grants,17/04/2014,123967,8723,The Crown Inn
Housing Services,Homelessness,Housing and Environmental Health ,Supplies & Services,Grants & Subscriptions,Grants,30/04/2014,124672,8787.5,Two Saints Housing Association Ltd
Planning & Development,Planning Policy,Plan Pol & Transport,Supplies & Services,Services,Project Consultancy - Policy,17/04/2014,122806,7437.03,Hampshire County Council
Cultural & Related,Open Spaces,Environmental,Transport Related Expenditure,Direct Transport Costs,Environmental transport costs AMP,17/04/2014,122990,7963,Hazlewood Engineering Co Ltd
Environmental & Regulatory,Waste management,Environmental,Supplies & Services,"Equipment, Furniture & Materials",Equipment Lease Rentals,10/04/2014,123010,8000,Sg Equipment Finance Ltd
Central Services to the Public,Management & Support Services,IT,Supplies & Services,Communications & Computing,Computer Software,10/04/2014,123190,8233.2,Phoenix Software Ltd
Central Services to the Public,Management & Support Services,Estates and Economic Development ,Third Party Payments,Other Establishments,Private Contractors,10/04/2014,123186,8300,Purbeck Civil Engineering Limited
Cultural & Related,Recreation & Sport,Community and Leisure ,Third Party Payments,Private contractors,Main Contractor Costs,17/04/2014,123837,10000,C & M Carpentry & Joinery Limited
Central Services to the Public,Management & Support Services,IT,Supplies & Services,Services,Project Consultancy - Systems,10/04/2014,123234,8500,Deltascheme
Cultural & Related,Open Spaces,Community and Leisure ,Premises related Expenditure,Grounds Maintenance Costs,Non Contract Tree Works,24/04/2014,123475,3444.48,Gristwood & Toms Ltd
Central Services to the Public,Emergency Planning,Corporate & Democratic,Premises related Expenditure,Grounds Maintenance Costs,Non Contract Tree Works,24/04/2014,123475,5151.22,Gristwood & Toms Ltd
Central Services to the Public,Management & Support Services,IT,Supplies & Services,Communications & Computing,Communication Links,03/04/2014,122192,10398.28,Solnet
Central Services to the Public,Management & Support Services,IT,Supplies & Services,Services,Project Consultancy - Systems,10/04/2014,123228,9000,Neptune Consulting
Central Services to the Public,Management & Support Services,IT,Supplies & Services,Services,Project Consultancy - Systems,03/04/2014,122816,9500,Quadsys
Central Services to the Public,Management & Support Services,IT,Supplies & Services,Services,Project Consultancy - Systems,30/04/2014,124718,9500,Quadsys
Environmental & Regulatory,Community Development,Community and Leisure ,Supplies & Services,Grants & Subscriptions,Grants,17/04/2014,123887,11410,Youth In Romsey
Central Services to the Public,Management & Support Services,IT,Supplies & Services,Communications & Computing,Computer Hardware,30/04/2014,123197,10000,Esri (Uk) Ltd
Central Services,Corporate & Democratic Core,Corporate & Democratic,Supplies & Services,Grants & Subscriptions,Subscriptions,24/04/2014,123733,10450,Local Government Association
"Highways, Roads & Transport",Highways and roads - maintenance,Plan Pol & Transport,Supplies & Services,"Equipment, Furniture & Materials",Purchase Equip + Materials,10/04/2014,123188,10538,Signway Supplies (Datchet Ltd)
Central Services to the Public,Management & Support Services,Estates and Economic Development ,Third Party Payments,Other Establishments,Private Contractors,30/04/2014,124716,11150,Protec Roofing Ltd
Central Services to the Public,Management & Support Services,IT,Supplies & Services,Communications & Computing,Computer Hardware,10/04/2014,123198,11520,Storm Technologies
Central Services to the Public,Elections,Legal & Democratic,Supplies & Services,Communications & Computing,Software Maintenance,10/04/2014,123468,11557.07,Xpress Software Solutions Ltd
Central Services to the Public,Management & Support Services,IT,Supplies & Services,Communications & Computing,Computer Hardware,10/04/2014,123199,12361.44,Dell Computer Corporation Ltd
Housing Services,Homelessness,Housing and Environmental Health ,Supplies & Services,Communications & Computing,Computer Software,30/04/2014,124313,5867,Abritas Ltd
Housing Services,"Housing strategy, advice and enabling",Housing and Environmental Health ,Supplies & Services,Communications & Computing,Computer Software,30/04/2014,124313,6888,Abritas Ltd
"Highways, Roads & Transport",Parking Services,Plan Pol & Transport,Support Services,IT,IT software licences,30/04/2014,124664,3067.65,Imperial Civil Enforcement Solutions
"Highways, Roads & Transport",Parking Services,Plan Pol & Transport,Supplies & Services,Communications & Computing,Software Maintenance,30/04/2014,124664,10159.39,Imperial Civil Enforcement Solutions
Central Services to the Public,Management & Support Services,IT,Supplies & Services,Communications & Computing,Communication Links,10/04/2014,121865,13854.79,Virgin Media Payments Ltd
Central Services to the Public,Management & Support Services,IT,Supplies & Services,Services,Project Consultancy - Systems,03/04/2014,122402,14000,Blue Chip
Central Services to the Public,Local Tax Collection,Revenues,Supplies & Services,"Printing, Stationery & General Office Expenses",Postage Costs,03/04/2014,122710,17171.63,Royal Mail
Central Services to the Public,Local Tax Collection,Revenues,Supplies & Services,"Printing, Stationery & General Office Expenses",Postage Costs,03/04/2014,122710,14.48,Royal Mail
Central Services to the Public,Local Tax Collection,Revenues,Supplies & Services,"Printing, Stationery & General Office Expenses",Postage Costs,03/04/2014,122710,258.75,Royal Mail
Housing Services,Housing Benefits ,Revenues,Supplies & Services,"Printing, Stationery & General Office Expenses",Postage Costs,03/04/2014,122710,231.21,Royal Mail
Central Services to the Public,Local Tax Collection,Revenues,Supplies & Services,"Printing, Stationery & General Office Expenses",Postage Costs,03/04/2014,122710,231.2,Royal Mail
Planning & Development,Community Development,Community and Leisure ,Supplies & Services,Grants & Subscriptions,Grants,30/04/2014,124758,22695.5,Test Valley Community Services
Central Services to the Public,Management & Support Services,IT,Supplies & Services,Communications & Computing,Software Maintenance,24/04/2014,124287,19320.96,Esri (Uk) Ltd
Central Services to the Public,Elections,Legal & Democratic,Supplies & Services,"Printing, Stationery & General Office Expenses",Postage Costs,17/04/2014,123892,21224.91,Financial Data Management Plc
Planning & Development,Community Development,Community and Leisure ,Supplies & Services,Grants & Subscriptions,Grants,10/04/2014,123507,25588,Romsey & Dist. Citizens Advice Bureau
Housing Services,"Housing strategy, advice and enabling",Housing and Environmental Health ,Supplies & Services,Communications & Computing,Computer Software,30/04/2014,124312,23870,Abritas Ltd
Planning & Development,Community Development,Community and Leisure ,Premises related Expenditure,Repairs Alterations & Maintenance of Buildings,General Repairs,30/04/2014,124895,32103.01,Andover And District Citizens Advice Bureau
Central Services to the Public,Management & Support Services,Plan Pol & Transport,Premises related Expenditure,Repairs Alterations & Maintenance of Buildings,General Repairs,03/04/2014,122309,27738.53,Colas Ltd
Cultural & Related,Recreation & Sport,Community and Leisure ,Third Party Payments,Other Establishments,ALC Management Contract-TVL,24/04/2014,123004,35000,Valley Leisure Ltd
Cultural & Related,Culture & Heritage,Community and Leisure ,Third Party Payments,Private contractors,Main Contractor Costs,10/04/2014,123490,35200,Chris Brammall Limited
Central Services to the Public,Management & Support Services,IT,Supplies & Services,Communications & Computing,Computer Hardware,02/04/2014,121701,42273,European Electronique
Planning & Development,Community Development,Community and Leisure ,Supplies & Services,Grants & Subscriptions,Grants,10/04/2014,123506,55932,Andover And District Citizens Advice Bureau
Cultural & Related,Tourism,Estates and Economic Development ,Supplies & Services,Grants & Subscriptions,Grants,30/04/2014,124668,69000,Tourism South East
"Highways, Roads & Transport",Parking Services,Plan Pol & Transport,Third Party Payments,Private contractors,Main Contractor Costs,03/04/2014,122727,79992.09,Hope & Clay Construction Ltd
Central Services to the Public,Management & Support Services,Chief Executive's,Supplies & Services,Communications & Computing,Software Maintenance,17/04/2014,123229,1415.51,Idox Software Ltd
Central Services to the Public,Management & Support Services,IT,Supplies & Services,Communications & Computing,Software Maintenance,17/04/2014,123229,32196.64,Idox Software Ltd
Planning & Development,Development Control,Planning & Building,Supplies & Services,Communications & Computing,Software Maintenance,17/04/2014,123229,52784.55,Idox Software Ltd
Housing services,"Housing strategy, advice and enabling",Housing and Environmental Health ,Supplies & Services,Grants and subscriptions,Capital Grants,30/04/2014,124873,150000,Aster Communities
